bitfinex/quotes_SOLUSD_20240616
["timestamp","ask_amount","ask_price","bid_price","bid_amount"]
[1718571107760,5.29,149.18,149.13,0.34]
[1718571107969,5.29,149.18,149.12,20.9242]
[1718571108752,5.29,149.18,149.13,0.17]
[1718571109067,5.29,149.18,149.13,0.68]
[1718571109633,22.315,149.23,149.13,0.68]
[1718571109634,5.29,149.19,149.13,5.97]
[1718571110043,5.29,149.19,149.13,0.68]
[1718571110272,5.29,149.14,149.1,6.0281]
[1718571110481,2.4803,149.18,149.1,6.0281]
[1718571110684,7.4404,149.19,149.1,6.0281]
[1718571110967,5.29,149.15,149.1,6.0281]
[1718571111539,5.29,149.15,149.1,11.3181]
[1718571111748,5.29,149.16,149.1,6.0281]
[1718571111961,5.29,149.16,149.12,0.17]
[1718571112143,5.29,149.16,149.12,0.68]
[1718571112351,5.29,149.17,149.12,0.68]
[1718571116572,5.29,149.17,149.12,5.97]
[1718571116876,5.29,149.19,149.14,0.17]
[1718571117175,5.29,149.19,149.14,0.68]
[1718571118375,5.29,149.18,149.14,0.68]
[1718571120559,5.29,149.17,149.14,0.17]
[1718571120755,5.29,149.17,149.13,0.68]
[1718571121793,5.29,149.18,149.13,0.68]
[1718571122096,15.0669,149.2,149.13,5.97]
[1718571122263,5.29,149.18,149.13,5.97]
[1718571122579,5.29,149.19,149.13,5.97]
[1718571122781,5.29,149.18,149.13,0.68]
[1718571123163,5.29,149.18,149.13,5.97]
[1718571123365,7.4388,149.22,149.13,0.68]
[1718571123570,5.29,149.21,149.16,0.17]
[1718571123785,5.29,149.21,149.16,0.68]
[1718571126297,2.4795,149.22,149.16,0.68]
[1718571126298,5.29,149.2,149.16,0.68]
[1718571126860,5.29,149.17,149.07,16.02]
[1718571127089,5.29,149.12,149.07,16.02]
[1718571127268,5.29,149.11,149.07,16.02]
[1718571128270,5.29,149.08,148.99,22.3268]
[1718571128472,5.29,149.07,149.01,5.29]
[1718571128770,5.29,149.06,149.0,5.29]
[1718571129183,29.311,149.1,148.98,22.6299]
[1718571129184,5.29,149.05,148.99,5.29]
[1718571130888,2.4817,149.09,149.01,5.29]
[1718571131088,22.4817,149.09,149.01,5.29]
[1718571131495,27.4451,149.09,149.02,0.51]
[1718571131701,27.4451,149.09,149.02,0.68]
[1718571132071,20.0,149.09,149.02,0.68]
[1718571132293,14.094,149.1,149.02,0.68]
[1718571133087,2.4817,149.09,149.02,0.68]
[1718571133508,7.4451,149.09,149.02,0.68]
[1718571133998,2.4817,149.09,149.02,0.68]
[1718571134895,14.0943,149.1,149.02,0.68]
[1718571135387,14.0942,149.1,149.02,0.68]
[1718571135592,9.131,149.1,149.02,0.68]
[1718571135898,14.0941,149.1,149.02,0.68]
[1718571136204,7.4451,149.09,149.02,0.68]
[1718571136404,2.4817,149.09,149.02,0.68]
[1718571137799,7.4451,149.09,149.02,0.68]
[1718571138806,31.4652,149.1,149.02,0.68]
[1718571139010,2.4817,149.09,149.02,0.68]
[1718571139710,31.4652,149.1,149.02,0.68]
[1718571140118,14.0943,149.1,149.02,0.68]
[1718571140502,21.5389,149.1,149.02,0.68]
[1718571142895,14.0943,149.1,149.02,0.68]
[1718571143413,2.4817,149.09,149.02,0.68]
[1718571143614,22.3373,149.08,148.99,0.17]
[1718571143812,2.482,149.07,148.99,0.68]
[1718571144051,22.3373,149.08,148.99,0.68]
[1718571144341,7.4459,149.08,148.99,0.68]
[1718571144841,6.99259934,149.11,148.99,120.83]
[1718571145039,6.99259934,149.11,149.01,0.17]
[1718571145241,7.4432,149.13,149.01,0.68]
[1718571145450,2.4811,149.13,149.01,0.68]
[1718571145739,2.4812,149.12,149.01,0.68]
[1718571146326,7.4436,149.12,149.01,0.68]
[1718571147048,2.4814,149.11,149.01,0.68]
[1718571147340,24.8122,149.12,149.01,0.68]
[1718571148441,7.4437,149.12,149.01,0.68]
[1718571148644,22.3302,149.13,149.01,0.68]
[1718571148845,7.4433,149.13,149.01,0.68]
[1718571149028,2.4812,149.12,149.01,0.68]
[1718571149820,2.4813,149.11,149.01,0.68]
[1718571150242,24.8125,149.12,149.01,0.68]
[1718571150832,2.4813,149.11,149.01,0.68]
[1718571151542,5.3,149.08,149.03,5.3]
[1718571151735,5.3,149.09,149.05,15.9463]
[1718571153134,7.4432,149.13,149.05,15.9463]
[1718571153439,2.4812,149.12,149.05,15.9463]
[1718571153635,5.3,149.08,149.05,15.9463]
[1718571156044,5.3,149.08,149.04,6.2534]
[1718571156868,5.3,149.07,149.01,15.9463]
[1718571157043,5.3,149.06,149.01,15.9463]
[1718571157249,5.3,149.06,149.02,0.17]
[1718571157483,5.3,149.06,149.02,0.68]
[1718571157960,21.2,149.1,149.02,0.68]
[1718571158158,14.43491934,149.12,149.02,5.98]
[1718571158159,5.3,149.07,149.02,5.98]
[1718571159147,5.3,149.07,149.02,0.68]
[1718571159450,5.3,149.08,149.02,5.98]
[1718571159661,5.3,149.08,149.02,0.68]
[1718571159841,5.3,149.08,149.02,5.98]
[1718571160668,5.3,149.07,149.02,0.68]
[1718571160855,5.3,149.07,149.02,5.98]
[1718571161256,31.80361934,149.12,149.02,0.68]
[1718571161464,5.3,149.07,149.02,5.98]
[1718571163570,5.3,149.1,149.01,15.9463]
[1718571163779,5.3,149.05,149.01,15.9463]
[1718571164570,7.7817,149.1,149.01,15.9463]
[1718571164774,21.2,149.1,149.02,0.17]
[1718571164954,21.2,149.1,149.02,0.68]
[1718571165267,11.95371934,149.12,149.02,5.98]
[1718571165474,5.3,149.08,149.02,0.68]
[1718571165675,5.3,149.08,149.02,5.98]
[1718571165981,5.3,149.07,149.02,0.68]
[1718571167877,5.3,149.08,149.02,5.98]
[1718571168959,29.32241934,149.12,149.07,5.3]
[1718571168960,6.99111934,149.12,149.07,5.3]
[1718571169179,5.3,149.15,149.1,0.17]
[1718571169495,45.24844383,149.18,149.1,5.98]
[1718571169797,5.3,149.15,149.1,5.81]
[1718571169998,5.3,149.14,149.04,121.0168]
[1718571170211,5.3,149.13,149.07,5.3]
[1718571170371,5.3,149.12,149.06,5.47]
[1718571170701,5.3,149.12,149.07,0.17]
[1718571171270,4.9628,149.11,149.04,15.7168]
[1718571171488,5.3,149.08,149.04,15.7168]
[1718571173198,2.4815,149.1,149.04,15.7168]
[1718571173500,5.3,149.08,149.04,15.7168]
[1718571174589,5.3,149.08,149.03,6.6508]
[1718571174901,5.3,149.06,149.02,149.684043]
[1718571175385,5.3,149.07,149.02,149.684043]
[1718571175772,5.3,149.07,149.02,154.984043]
[1718571175973,18.4189,149.11,149.03,5.47]
[1718571176197,5.3,149.09,149.03,5.47]
[1718571176497,5.3,149.09,149.03,5.92370777]
[1718571177085,5.3,149.09,149.04,5.3]
[1718571177696,2.481,149.13,149.06,5.3]
[1718571178007,5.3,149.12,149.06,5.3]
[1718571179300,5.3,149.12,149.02,149.854043]
[1718571179301,5.3,149.08,149.02,149.684043]
[1718571179481,5.3,149.08,149.02,154.984043]
[1718571179809,5.3,149.09,149.04,5.3]
[1718571179982,5.3,149.09,149.03,5.3]
[1718571180349,5.3,149.09,149.02,149.684043]
[1718571180478,35.9374,149.08,149.02,149.684043]
[1718571180682,5.3,149.03,149.02,149.684043]
[1718571181376,7.4478,149.04,149.02,149.684043]
[1718571181612,2.4826,149.04,149.02,149.684043]
[1718571183202,7.4477,149.04,149.02,149.684043]
[1718571183508,2.4826,149.04,149.02,149.684043]
[1718571184498,7.4477,149.04,149.02,149.684043]
[1718571184679,2.4826,149.04,149.02,149.684043]
[1718571184875,2.4827,149.03,149.02,149.684043]
[1718571185080,24.827,149.03,149.02,149.684043]
[1718571188302,2.4827,149.03,149.02,149.684043]
[1718571188781,24.827,149.03,149.02,149.684043]
[1718571189202,2.4827,149.03,149.02,149.684043]
[1718571189387,24.8261,149.04,149.02,149.684043]
[1718571189801,2.4827,149.03,149.02,149.684043]
[1718571190007,7.4481,149.03,149.02,149.684043]
[1718571191109,60.737,149.03,149.02,149.684043]
[1718571193784,61.417,149.03,149.02,149.684043]
[1718571193992,68.40298836,149.03,149.02,149.684043]
[1718571194609,190.33748836,149.03,149.02,96.02785479]
[1718571195488,190.33748836,149.03,149.02,90.72785479]
[1718571196629,90.33748836,149.03,149.02,90.72785479]
[1718571196990,26.98598836,149.03,149.02,90.72785479]
[1718571197193,6.98598836,149.03,149.02,90.72785479]
[1718571197399,21.88218836,149.03,149.02,90.72785479]
[1718571197612,51.81298836,149.03,149.02,90.72785479]
[1718571198505,52.49298836,149.03,149.02,90.72785479]
[1718571199821,68.40298836,149.03,149.02,90.72785479]
[1718571205423,78.99298836,149.03,149.02,90.72785479]
[1718571205621,22.3461,149.02,148.93,5.47]
[1718571205823,5.3,148.98,148.94,0.17]
[1718571207917,5.3,148.98,148.93,0.34]
[1718571208850,5.3,148.99,148.93,0.34]
[1718571210728,5.3,148.99,148.93,5.64]
[1718571210926,2.483,149.01,148.93,5.64]
[1718571211230,5.3,148.99,148.93,5.64]
[1718571212334,6.98598836,149.03,148.95,5.47]
[1718571212544,7.4467,149.06,148.96,5.81]
[1718571212746,5.3,149.02,148.96,5.81]
[1718571213054,5.3,149.01,148.96,5.81]
[1718571213722,5.3,149.01,148.96,0.51]
[1718571213930,5.3,149.0,148.96,0.17]
[1718571214264,5.3,149.0,148.95,5.98]
[1718571215339,5.3,149.0,148.95,0.68]
[1718571215664,5.3,149.0,148.94,27.9269]
[1718571215959,5.3,148.99,148.94,27.9269]
[1718571217250,22.6794,149.03,148.94,27.9269]
[1718571217430,5.3,149.0,148.94,27.9269]
[1718571219562,5.3,149.0,148.94,22.6269]
[1718571219736,5.3,148.99,148.94,27.9269]
[1718571219933,5.3,148.99,148.94,22.6269]
[1718571221355,5.3,148.98,148.94,22.6269]
[1718571221559,2.4832,149.0,148.94,22.6269]
[1718571221560,5.3,148.97,148.94,22.6269]
[1718571222068,5.3,148.98,148.94,22.6269]
[1718571222759,5.3,148.97,148.94,22.6269]
[1718571224273,2.4832,149.0,148.94,22.6269]
[1718571224471,5.3,148.97,148.94,22.6269]
[1718571225047,5.3,148.95,148.94,22.6269]
[1718571225350,5.3,148.96,148.94,22.6269]
[1718571226370,5.3,148.96,148.9,22.7697]
[1718571226550,5.3,148.96,148.91,5.3]
[1718571227251,5.3,148.96,148.9,28.0697]
[1718571227882,5.3,148.93,148.9,22.7697]
[1718571228053,5.3,148.94,148.9,22.7697]
[1718571230391,2.4836,148.98,148.9,22.7697]
[1718571230588,7.4503,148.99,148.91,5.3]
[1718571230896,5.3,148.97,148.91,5.3]
[1718571231047,5.3,148.96,148.91,0.17]
[1718571231252,5.3,148.96,148.91,0.34]
[1718571231452,2.4836,148.98,148.91,0.34]
[1718571231453,5.3,148.95,148.91,0.34]
[1718571231852,5.3,148.96,148.91,0.34]
[1718571232479,5.3,148.96,148.91,5.64]
[1718571233159,5.3,148.96,148.92,0.34]
[1718571233473,5.3,148.97,148.92,0.34]
[1718571234276,5.3,148.99,148.93,5.3]
[1718571234656,5.3,148.98,148.92,5.64]
[1718571234858,5.3,148.98,148.93,0.17]
[1718571235078,5.3,148.98,148.92,5.64]
[1718571235284,5.3,148.98,148.92,5.3]
[1718571235465,7.7836,148.98,148.91,0.17]
[1718571235773,5.3,148.97,148.91,5.98]
[1718571237659,2.4835,148.99,148.91,5.98]
[1718571237859,5.3,148.97,148.91,5.98]
[1718571241283,24.8329,149.0,148.92,5.3]
[1718571241457,5.3,148.98,148.91,0.17]
[1718571241652,5.3,148.98,148.91,5.47]
[1718571243880,5.3,148.98,148.92,5.3]
[1718571245391,5.3,148.99,148.93,5.3]
[1718571245560,5.3,149.0,148.94,5.3]
[1718571249501,5.3,149.0,148.95,5.3]
[1718571249676,7.783,149.01,148.95,5.3]
[1718571249991,22.3466,149.02,148.95,5.3]
[1718571249992,22.3467,149.02,148.95,5.3]
[1718571250206,7.783,149.01,148.95,5.3]
[1718571250416,12.7491,149.01,148.95,5.3]
[1718571250719,12.4164,149.0,148.95,5.3]
[1718571251010,2.4833,149.0,148.95,5.3]
[1718571251211,7.4497,149.0,148.95,5.3]
[1718571251398,7.7833,149.0,148.94,5.3]
[1718571251803,2.4834,148.99,148.94,5.3]
[1718571251983,12.7498,149.0,148.94,5.3]
[1718571252178,2.4834,148.99,148.94,5.3]
[1718571252604,7.449,149.02,148.95,5.47]
[1718571252812,15.2322,149.01,148.95,5.3]
[1718571252979,2.4835,148.99,148.95,5.3]
[1718571253184,12.7503,148.99,148.94,5.3]
[1718571253376,2.4835,148.99,148.94,5.3]
[1718571253579,17.718,148.98,148.9,22.7697]
[1718571253809,5.3,148.97,148.92,5.3]
[1718571254010,7.7835,148.98,148.92,5.3]
[1718571254396,12.7506,148.98,148.92,5.3]
[1718571254587,4.9675,148.97,148.9,22.7697]
[1718571254785,7.7837,148.97,148.9,22.7697]
[1718571254983,7.7837,148.97,148.92,5.3]
[1718571255303,12.7511,148.97,148.92,5.3]
[1718571255480,7.7837,148.97,148.92,5.3]
[1718571255910,5.3,148.97,148.92,5.3]
[1718571258189,5.3,148.98,148.92,5.3]
[1718571259011,7.7835,148.98,148.92,5.3]
[1718571259709,5.3,148.98,148.92,5.3]
[1718571260908,5.3,148.98,148.93,5.3]
[1718571261419,5.3,148.99,148.93,5.3]
[1718571261594,5.3,148.99,148.94,5.3]
[1718571262581,5.3,148.99,148.91,0.17]
[1718571262782,5.3,148.99,148.91,0.68]
[1718571263495,4.9671,148.98,148.9,22.7697]
[1718571263700,5.3,148.97,148.92,5.3]
[1718571264116,5.3,148.97,148.9,22.7697]
[1718571264301,5.3,148.96,148.91,5.3]
[1718571265222,5.3,148.97,148.91,5.3]
[1718571265402,5.3,148.97,148.91,6.52035601]
[1718571265602,5.3,148.97,148.92,5.3]
[1718571265913,5.3,148.98,148.93,5.3]
[1718571267027,5.3,148.98,148.9,16.4125]
[1718571267028,10.2671,148.98,148.9,16.4125]
[1718571267204,5.3,148.96,148.91,5.3]
[1718571267910,7.7837,148.97,148.91,5.3]
[1718571268531,5.3,148.97,148.9,16.4125]
[1718571268704,5.3,148.97,148.91,5.3]
[1718571271126,5.3,148.97,148.9,16.4125]
[1718571271434,5.3,148.97,148.91,5.3]
[1718571272530,7.7837,148.97,148.89,0.17]
[1718571272733,7.7837,148.97,148.88,0.8401623]
[1718571272902,5.3,148.96,148.9,5.3]
[1718571274136,5.3,148.96,148.88,0.8401623]
[1718571274137,7.4517,148.96,148.88,0.8401623]
[1718571274313,5.3,148.95,148.89,5.3]
[1718571274511,7.4533,148.93,148.88,0.8401623]
[1718571274728,5.3,148.91,148.88,0.8401623]
[1718571274909,5.3,148.92,148.88,0.8401623]
[1718571275114,5.3,148.91,148.88,0.8401623]
[1718571275931,5.3,148.9,148.88,0.8401623]
[1718571278316,5.3,148.89,148.88,0.8401623]
[1718571280819,2.4845,148.92,148.88,0.8401623]
[1718571281018,5.3,148.9,148.88,0.8401623]
[1718571281339,5.3,148.89,148.88,0.8401623]
[1718571282836,7.785,148.89,148.88,0.8401623]
[1718571283237,2.485,148.89,148.88,0.8401623]
[1718571283545,7.785,148.89,148.88,0.8401623]
[1718571284127,5.3,148.89,148.88,0.8401623]
[1718571284845,7.785,148.89,148.88,0.8401623]
[1718571287750,5.3,148.89,148.88,0.8401623]
[1718571288117,7.785,148.89,148.88,0.8401623]
[1718571290354,24.8493,148.9,148.88,0.8401623]
[1718571290521,5.3,148.89,148.88,0.8401623]
[1718571291941,2.485,148.89,148.88,0.8401623]
[1718571292152,30.1504,148.89,148.88,0.8401623]
[1718571292952,35.4504,148.89,148.88,0.8401623]
[1718571293464,22.6953,148.89,148.88,0.8401623]
[1718571294086,12.7551,148.89,148.88,0.8401623]
[1718571294376,35.4504,148.89,148.88,0.8401623]
[1718571294742,30.1504,148.89,148.88,0.8401623]
[1718571294945,37.1406941,148.89,148.88,0.8401623]
[1718571295161,19.7453941,148.89,148.88,0.8401623]
[1718571295467,25.0453941,148.89,148.88,0.8401623]
[1718571296366,20.0752941,148.89,148.88,0.8401623]
[1718571296670,17.5902941,148.89,148.88,0.8401623]
[1718571296871,12.2902941,148.89,148.88,0.8401623]
[1718571297044,14.7752941,148.89,148.88,0.8401623]
[1718571297244,42.4406941,148.89,148.88,0.8401623]
[1718571297474,58.3406941,148.89,148.88,0.8401623]
[1718571297652,37.1406941,148.89,148.88,0.8401623]
[1718571297858,42.4406941,148.89,148.88,0.8401623]
[1718571298050,33.4902941,148.89,148.88,0.8401623]
[1718571298254,12.2902941,148.89,148.88,0.8401623]
[1718571298570,5.3,148.89,148.88,0.8401623]
[1718571301376,7.785,148.89,148.88,0.8401623]
[1718571302086,5.3,148.89,148.88,0.8401623]
[1718571302377,7.785,148.89,148.88,0.8401623]
[1718571303063,5.3,148.89,148.88,0.8401623]
[1718571303991,6.98986305,148.91,148.88,0.8401623]
[1718571304299,5.3,148.9,148.88,0.8401623]
[1718571304657,24.8457,148.92,148.88,0.8401623]
[1718571304853,5.3,148.9,148.88,0.8401623]
[1718571305059,6.98889868,148.93,148.89,27.3511]
[1718571305363,7.784,148.95,148.89,27.3511]
[1718571305672,5.3,148.94,148.89,27.3511]
[1718571305874,5.3,148.94,148.89,22.0511]
[1718571306384,5.3,148.93,148.89,21.8811]
[1718571306988,5.3,148.91,148.88,0.8401623]
[1718571310765,6.98689382,148.98,148.88,0.8401623]
[1718571310972,6.98689382,148.98,148.88,6.1401623]
[1718571310973,20.0,148.97,148.88,6.1401623]
[1718571311170,20.0,148.97,148.89,5.3]
[1718571311485,4.9677,148.96,148.89,5.3]
[1718571311689,20.0,148.97,148.88,0.8401623]
[1718571311858,5.3,148.92,148.88,0.8401623]
[1718571312190,2.4842,148.94,148.88,0.8401623]
[1718571312391,22.3572,148.95,148.88,6.1401623]
[1718571312392,5.3,148.93,148.88,6.1401623]
[1718571312777,5.3,148.93,148.88,0.8401623]
[1718571312967,7.4524,148.95,148.88,0.8401623]
[1718571312968,2.4842,148.94,148.88,6.1401623]
[1718571313287,5.3,148.93,148.88,0.8401623]
[1718571313786,5.3,148.94,148.88,6.1401623]
[1718571314156,7.7842,148.94,148.88,6.1401623]
[1718571314393,5.3,148.94,148.88,6.1401623]
[1718571317589,2.484,148.95,148.88,6.1401623]
[1718571317789,5.3,148.94,148.88,6.1401623]
[1718571318466,7.7842,148.94,148.88,0.8401623]
[1718571318680,7.7842,148.94,148.88,6.1401623]
[1718571319089,5.3,148.93,148.88,6.1401623]
[1718571319384,7.7843,148.93,148.88,6.1401623]
[1718571319557,5.3,148.93,148.88,6.1401623]
[1718571319761,7.4528,148.94,148.88,6.1401623]
[1718571320076,5.3,148.93,148.88,6.1401623]
[1718571320291,7.7844,148.93,148.88,6.1401623]
[1718571320463,5.3,148.93,148.88,6.1401623]
[1718571320664,7.7844,148.93,148.88,6.1401623]
[1718571320972,2.4844,148.93,148.88,0.8401623]
[1718571321904,7.4532,148.93,148.88,0.8401623]
[1718571322401,2.4843,148.94,148.88,0.8401623]
[1718571322982,24.8413,148.95,148.88,0.8401623]
[1718571323871,5.3,148.93,148.88,6.1401623]
[1718571324174,5.3,148.93,148.88,0.8401623]
[1718571324378,17.389,148.95,148.88,0.8401623]
[1718571324379,2.484,148.95,148.89,0.17]
[1718571324590,5.3,148.94,148.89,0.68]
[1718571327267,5.3,148.95,148.89,5.98]
[1718571328170,17.7203,148.95,148.89,5.98]
[1718571328369,7.7842,148.94,148.89,0.34]
[1718571328768,5.3,148.94,148.89,0.34]
[1718571330475,22.3554,148.96,148.89,0.34]
[1718571330692,7.4519,148.96,148.89,5.64]
[1718571330886,7.4519,148.96,148.89,0.34]
[1718571331093,5.3,148.94,148.89,0.34]
[1718571332507,2.484,148.95,148.89,5.64]
[1718571332800,7.784,148.95,148.89,5.64]
[1718571333585,20.0,148.97,148.89,5.64]
[1718571333898,12.4196,148.96,148.89,5.64]
[1718571334102,5.3,148.95,148.89,5.64]
[1718571334293,12.7521,148.95,148.89,5.64]
[1718571335606,20.2042,148.95,148.89,5.64]
[1718571335795,2.4842,148.94,148.89,5.64]
[1718571335984,5.3,148.94,148.89,5.64]
[1718571336503,7.7842,148.94,148.89,5.64]
[1718571336920,5.3,148.94,148.89,5.64]
[1718571337397,5.3,148.94,148.89,0.34]
[1718571339000,22.3564,148.95,148.89,0.34]
[1718571339341,12.4197,148.96,148.89,0.34]
[1718571339619,12.7522,148.95,148.89,0.34]
[1718571340217,32.7511,148.97,148.91,5.3]
[1718571340424,12.7511,148.97,148.91,5.3]
[1718571341028,7.7837,148.97,148.92,0.17]
[1718571341326,2.4833,148.99,148.92,5.98]
[1718571341616,2.4833,148.99,148.93,5.3]
[1718571341786,12.7501,148.99,148.93,5.3]
[1718571342415,7.7833,148.99,148.93,5.3]
[1718571342821,5.3,148.99,148.94,0.17]
[1718571343027,14.44255679,149.01,148.94,5.81]
[1718571343326,5.3,149.0,148.94,5.81]
[1718571343484,7.4494,149.01,148.95,15.4883]
[1718571343690,12.7492,149.01,148.95,20.7883]
[1718571343907,20.1983,149.01,148.95,20.7883]
[1718571344111,20.1983,149.01,148.95,15.4883]
[1718571344310,20.1983,149.01,148.95,20.7883]
[1718571344493,2.4832,149.0,148.95,20.7883]
[1718571344899,30.1305,149.01,148.95,20.7883]
[1718571345100,2.4832,149.0,148.95,20.7883]
[1718571345306,20.1992,149.0,148.95,15.4883]
[1718571345633,12.7496,149.0,148.95,15.4883]
[1718571346199,5.3,149.0,148.95,15.4883]
[1718571346402,7.7832,149.0,148.95,15.4883]
[1718571346624,2.4833,148.99,148.95,15.4883]
[1718571346809,20.1993,149.0,148.95,15.4883]
[1718571347216,12.7497,149.0,148.95,15.4883]
[1718571347527,2.4834,148.99,148.95,15.4883]
[1718571347713,5.3,148.98,148.95,15.4883]
[1718571350127,2.4831,149.01,148.95,15.4883]
[1718571350426,5.3,149.0,148.95,20.7883]
[1718571350608,23.44929639,149.04,148.96,5.47]
[1718571350609,40.82779639,149.04,148.96,5.47]
[1718571350816,5.3,149.02,148.96,4.97]
[1718571351233,2.4827,149.03,148.96,4.97]
[1718571351416,5.3,149.02,148.96,4.97]
[1718571352247,5.3,149.04,148.99,5.3]
[1718571352406,5.3,149.04,148.98,5.3]
[1718571352748,5.3,149.03,148.98,5.3]
[1718571352940,5.3,149.03,148.97,5.64]
[1718571353530,5.3,149.03,148.98,0.17]
[1718571353746,5.3,149.0,148.95,21.925]
[1718571354039,5.3,149.02,148.96,5.47]
[1718571354241,5.3,149.02,148.96,5.81]
[1718571356141,5.3,149.01,148.96,0.51]
[1718571356736,0.17,149.07,148.96,0.51]
[1718571356737,4.9648,149.05,148.98,5.3]
[1718571356940,7.7825,149.04,148.98,5.3]
[1718571357141,5.3,149.02,148.97,5.47]
[1718571357519,5.3,149.03,148.97,5.47]
[1718571358120,5.3,149.03,148.98,0.17]
[1718571358321,5.3,149.05,148.99,5.3]
[1718571358531,5.3,149.05,148.98,0.51]
[1718571358729,5.3,149.04,148.99,0.17]
[1718571358934,5.3,149.04,148.99,0.34]
[1718571359129,5.3,149.04,148.98,0.17]
[1718571359336,5.3,149.03,148.97,0.17]
[1718571359530,5.3,149.03,148.97,5.81]
[1718571359934,5.3,149.01,148.95,21.925]
[1718571360145,5.3,149.01,148.95,27.225]
[1718571360843,5.3,149.0,148.95,21.925]
[1718571361040,5.3,148.99,148.95,21.925]
[1718571361442,5.3,148.98,148.95,21.925]
[1718571361840,5.3,148.98,148.95,15.4883]
[1718571362243,5.3,148.98,148.92,5.3]
[1718571364156,9.47584888,149.02,148.91,21.3361]
[1718571364332,40.7735,149.03,148.94,5.3]
[1718571364533,5.3,149.0,148.94,5.3]
[1718571365061,5.3,148.99,148.92,0.68]
[1718571366862,5.3,148.97,148.91,21.3361]
[1718571367070,5.3,148.97,148.91,26.6361]
[1718571368636,5.3,148.97,148.92,5.3]
[1718571369865,5.3,148.98,148.92,5.3]
[1718571370869,5.3,148.97,148.92,5.3]
[1718571373262,5.3,148.97,148.91,21.3361]
[1718571373459,5.3,148.97,148.91,26.6361]
[1718571374540,5.3,148.97,148.92,0.17]
[1718571375440,5.3,148.97,148.91,26.6361]
[1718571378272,5.3,148.97,148.91,21.3361]
[1718571378465,5.3,148.96,148.91,21.3361]
[1718571381962,5.3,148.95,148.91,15.3994]
[1718571382163,5.3,148.94,148.88,6.1401623]
[1718571382379,5.3,148.94,148.89,0.17]
[1718571382984,5.3,148.93,148.88,6.1401623]
[1718571383161,5.3,148.93,148.88,0.8401623]
[1718571384975,5.3,148.92,148.88,0.8401623]
[1718571393881,5.3,148.91,148.88,0.8401623]
[1718571394097,5.3,148.9,148.88,0.8401623]
[1718571402996,9.48051707,148.94,148.88,0.8401623]
[1718571403198,5.3,148.92,148.88,0.8401623]
[1718571403572,28.3884,148.96,148.88,0.8401623]
[1718571403773,5.3,148.94,148.88,6.1401623]
[1718571403978,5.3,148.93,148.88,6.1401623]
[1718571404987,5.3,148.94,148.88,6.1401623]
[1718571405184,2.484,148.95,148.89,5.3]
[1718571405377,5.3,148.94,148.89,5.3]